Cogmind - Beta 16.1 @@@ ROGUE MODE // 2026.02.22 @ 18:39:13 Player: cptwinky Result: Destroyed by G-47 Trooper with Particle Gun Performance ------------- Evolutions (1) 500 Regions Visited (4) 800 Robots Destroyed (101) 505 Value Destroyed (2092) 2092 Prototype IDs (3) 60 Alien Tech Used (0) 0 Bonus (25) 25 TOTAL SCORE: 3982 Bonus ------- Follower Combat Kills 25 Cogmind --------- Core Integrity 0/400 Matter 300/300 Energy 250/265 System Corruption 0% Temperature Cool (42) Movement Treading (200) Ox1 Location -9/Storage Parts ------- > --- POWER (1) -------- Improved Ion Engine > --- PROPULSION (3) --- Light Treads Light Treads Light Treads > --- UTILITY (3) ------ Improved Heat Sink Huge Storage Unit Hardened Light Armor Plating > --- WEAPON (2) ------- Beam Rifle Beam Rifle > --- INVENTORY (25) --- Improved Ion Engine Light Treads Improved Treads Improved Treads Improved Treads Improved Treads Compact Wheel Compact Wheel Improved Heat Sink Medium Storage Unit Seismic Detector Advanced Targeting Computer Light Armor Plating Medium Armor Plating Hacking Suite Beam Rifle Beam Rifle Beam Rifle Beam Rifle Beamcaster Mini Grenade Launcher Mini Grenade Launcher Datajack Makeshift Spear Peak State ------------ > --- POWER ------------ Improved Ion Engine > --- PROPULSION ------- Light Treads Light Treads Light Treads > --- UTILITY ---------- Improved Heat Sink Huge Storage Unit Hardened Light Armor Plating > --- WEAPON ----------- Beam Rifle Makeshift Spear > --- INVENTORY -------- Improved Ion Engine Light Treads Light Treads Light Treads Light Treads Improved Treads Compact Wheel Improved Heat Sink Medium Storage Unit Seismic Detector Advanced Targeting Computer Advanced Targeting Computer Medium Armor Plating Hacking Suite Beam Rifle Beam Rifle Beam Rifle Beam Rifle Beamcaster Beamcaster Light Cannon Improved Light Cannon Mini Grenade Launcher Mini Grenade Launcher Datajack [Rating: 22] Favorites ----------- Power Ion Engine Engine Ion Engine Propulsion Light Treads Treads Light Treads Wheel Compact Wheel Utility Huge Storage Unit Device Improved Heat Sink Storage Huge Storage Unit Protection Light Armor Plating Weapon Beam Rifle Energy Gun Beam Rifle Ballistic Gun Assault Rifle Launcher Grenade Launcher Special Weapon Mining Laser Piercing Weapon Makeshift Spear Special Melee Weapon Datajack Build | -11 -10 -10 -9 -9 ------- Run | Yrd Mat Min Mat Sto Slots Evolved 2 | . . . 2 . Power . | . . . . . Propulsion 1 | . . . 1 . Utility 1 | . . . 1 . Weapon . | . . . . . Parts Attached 51 | 6 5 2 15 23 Power 6 | 1 . . 2 3 Engine 6 | 1 . . 2 3 Core . | . . . . . Reactor . | . . . . . Propulsion 15 | 2 . . 4 9 Treads 14 | 2 . . 3 9 Leg . | . . . . . Wheel 1 | . . . 1 . Hover . | . . . . . Flight . | . . . . . Utility 12 | 1 3 1 6 1 Device 3 | . . . 2 1 Storage 3 | 1 1 . 1 . Processor . | . . . . . Hackware . | . . . . . Protection 6 | . 2 1 3 . Artifact . | . . . . . Weapon 18 | 2 2 1 3 10 Energy Gun 10 | . . . 3 7 Energy Cannon . | . . . . . Ballistic Gun 3 | 2 . . . 1 Ballistic Cannon . | . . . . . Launcher 2 | . 1 . . 1 Special Weapon 1 | . 1 . . . Impact Weapon . | . . . . . Slashing Weapon . | . . . . . Piercing Weapon 1 | . . 1 . . Special Melee Weapon 1 | . . . . 1 Unidentified Prototypes 3 | . . . 1 2 Parts Lost 6 | . . . 4 2 Power 2 | . . . . 2 Propulsion 1 | . . . 1 . Utility 3 | . . . 3 . Weapon . | . . . . . Highest Loss Streak 1 | . . . 1 1 To Critical Strikes . | . . . . . Average Backups 18 | 3 8 9 18 24 Power . | . 1 1 1 . Propulsion 3 | 1 1 1 2 6 Utility 5 | . 2 5 5 6 Weapon 7 | . 2 2 9 9 Tool/Special . | . . . . . Unused Backups 25 | . 3 2 2 18 Power 1 | . . . . 1 Propulsion 7 | . 2 . . 5 Utility 8 | . . . 2 6 Weapon 9 | . 1 2 . 6 Tool/Special . | . . . . . Average Slot Usage (%) 98 | . 96 100 97 99 Engine 11 | . 14 14 11 10 Treads 31 | . 28 28 30 33 Device 8 | . . . 9 12 Storage 11 | . 14 14 11 11 Protection 10 | . 11 14 10 9 Energy Gun 15 | . . . 18 21 Ballistic Gun 7 | . 25 27 4 . Peak Build Rating 22 | 6 8 11 19 22 Average Rating 15 | 5 7 8 15 19 On Entrance 8 | . 6 8 8 19 Avg Prop Armor Cover (%) 15 | . . . 15 . Naked Turns . | . . . . . Heaviest Build 100 | 14 23 22 97 100 Greatest Support 60 | 40 40 40 60 60 Greatest Overweight (x) 5 | . . . 5 1 Average Overweight (x) . | . . . 1 1 Largest Inventory Capacity 25 | 8 10 10 25 25 Average Capacity 20 | 7 8 10 24 25 Most Carried 25 | 6 10 10 25 25 Average Carried 18 | 3 8 9 18 24 Final Capacity 25 | 8 10 10 25 25 Final Carried 24 | 6 10 10 24 24 Class Distribution -------------------- 53% | Mutant 46% | Scavenger-Mutant Dominant Class ---------------- Mutant | -10/Materials Mutant | -10/Mines Mutant | -9/Materials Scavenger-Mutant | -9/Storage Resources | -11 -10 -10 -9 -9 ----------- Run | Yrd Mat Min Mat Sto Matter Collected 1396 | 258 291 269 273 305 Remotely . | . . . . . Salvage Created 3241 | 97 316 273 1108 1447 Parts 186 | 10 17 22 52 85 Haulers Intercepted 10 | . 1 . 3 6 Recyclers Shooed 2 | . . . 1 1 Parts Field Recycled . | . . . . . Retrieved Matter . | . . . . . Parts Self-Destructed . | . . . . . Prevented . | . . . . . Parts Restored . | . . . . . Kills | -11 -10 -10 -9 -9 ------- Run | Yrd Mat Min Mat Sto Combat Hostiles Destroyed 66 | . 12 13 21 20 Melee 1 | . . . 1 . Guns 47 | . 3 9 20 15 AOE 17 | . 9 4 . 4 Classes Destroyed 12 | 2 5 . 5 . Worker 5 | . 1 . 1 3 Builder 3 | . . . 1 2 Tunneler 3 | 3 . . . . Hauler 10 | . 1 . 3 6 Recycler 7 | 1 . . 2 4 Mechanic 1 | . . . 1 . Operator 5 | . 2 . 1 2 Watcher 1 | . . . 1 . Swarmer 26 | . 6 6 10 4 Grunt 24 | . 6 7 4 7 Duelist 1 | . . . 1 . Sentry 15 | . . . 6 9 Best Kill Streak 5 | 2 3 5 4 5 Combat Bots Only 5 | . 3 5 4 5 Max Kills in Single Turn 4 | 1 3 2 2 4 Gunslinging 1 | . . . 1 . Exploded 4 | . 3 2 . 4 Melee 1 | . . . 1 . Uniques/NPCs Destroyed . | . . . . . Combat | -11 -10 -10 -9 -9 -------- Run | Yrd Mat Min Mat Sto Hostile Shots Fired 257 | . 37 37 93 90 Missed 69 | . 12 8 21 28 Hits 188 | . 25 29 72 62 Melee 5 | . . . 5 . Projectile 183 | . 25 29 67 62 Critical Strikes 6 | . . 1 1 4 Damage Taken 2372 | . 290 327 947 808 Core 481 | . 10 70 233 168 Absorbed by Shields 34 | . . . . 34 Regen/Repaired (Parts) 481 | . 123 . 228 130 Core Remaining (%) 84 | 100 . 68 . . Volleys Fired 232 | 8 30 26 76 92 Largest 2 | 2 2 2 2 2 Hottest 112 | 40 100 40 112 112 Shots Fired 437 | 16 49 48 152 172 Gun 421 | 16 38 44 152 171 Cannon . | . . . . . Launcher 14 | . 9 4 . 1 Special 2 | . 2 . . . Kinetic 122 | 16 38 44 24 . Thermal 290 | . 2 . 128 160 Explosive 14 | . 9 4 . 1 Electromagnetic 11 | . . . . 11 Robot Hit Streak 19 | 7 8 9 15 19 Robot Miss Streak 4 | 1 2 3 4 2 Penetration Max . | . . . . . Secondary Targets 6 | . . . 6 . Max Gunslinging Chain 1 | . . . 1 . Shots Hit Robots 310 | 13 32 30 101 134 Core Hits 147 | 5 23 24 42 53 Critical Kills 1 | . . . 1 . Critical Parts Destroyed . | . . . . . Critical Strikes 22 | . . . 14 8 Burn 21 | . . . 13 8 Destroy 1 | . . . 1 . Melee Attacks 4 | . . . . 4 Impact . | . . . . . Slashing . | . . . . . Piercing 3 | . . . . 3 Sneak Attacks 2 | . . . . 2 Combat Hostiles . | . . . . . Follow-up Attacks . | . . . . . Damage Inflicted 5907 | 156 972 744 1667 2368 Guns 4438 | 156 337 367 1593 1985 Cannons . | . . . . . Explosions 1273 | . 624 358 . 291 Melee 54 | . . . . 54 Ramming 142 | . 11 19 74 38 Kinetic 1049 | 156 337 367 189 . Thermal 3299 | . . . 1404 1895 Explosive 1205 | . 624 358 . 223 Electromagnetic 158 | . . . . 158 Impact . | . . . . . Slashing . | . . . . . Piercing 54 | . . . . 54 Highest Corruption . | . . . . . Average Corruption . | . . . . . Corruption Purged . | . . . . . Corruption Blocked . | . . . . . Overload Shots . | . . . . . Overflow Damage 37 | . 26 10 . 1 Projectiles . | . . . . . Explosions 36 | . 26 10 . . Melee 1 | . . . . 1 Knockbacks 3 | . . 1 2 . Impact 3 | . . 1 2 . Kinetic . | . . . . . Secondary . | . . . . . Self-Inflicted Damage 48 | . 30 8 . 10 Shots 5 | . 3 1 . 1 Rammed 23 | . 3 6 9 5 Targets Rammed 27 | . 3 6 11 7 Kicked . | . . . . . Crushed 4 | . . . 2 2 Highest Temperature 429 | . 40 24 66 429 Average Temperature 28 | . 10 10 18 38 Received Heat Transfer 805 | . 90 144 222 349 Siege Activations . | . . . . . Martial Activations . | . . . . . Shielding Activations . | . . . . . Robots Disrupted . | . . . . . Combat Hostiles . | . . . . . Robots Corrupted . | . . . . . Combat Hostiles . | . . . . . Parts Fried . | . . . . . Impact Corruptions 1 | . . . . 1 Robots Melted 3 | . . . 1 2 Combat Hostiles 1 | . . . . 1 Parts Melted 34 | . . . 17 17 Heat Transferred 9633 | . . . 4440 5193 Parts Sabotaged . | . . . . . Parts Stolen . | . . . . . Parts Stripped . | . . . . . Power Chain Reactions 2 | . . . . 2 Alert | -11 -10 -10 -9 -9 ------- Run | Yrd Mat Min Mat Sto Maximum Alert Level 1 | . 1 . . . Low Security (%) 97 | 100 79 100 100 100 Level 1 2 | . 20 . . . Level 2 . | . . . . . Level 3 . | . . . . . Level 4 . | . . . . . Level 5 . | . . . . . High Security . | . . . . . Max Security . | . . . . . Peak Influence 245 | 10 245 136 180 151 Initial 54 | . . 54 40 8 Average 67 | 1 131 40 68 60 Influence Increases 2172 | 20 434 314 678 726 Destroy 0b10 Robot/C 1340 | . 240 260 440 400 Destroy 0b10 Robot/NC 175 | 20 20 . 50 85 Destroy Leader 332 | . 42 30 118 142 Allied During Kill 2 | . . . 2 . Trap Triggered on 0b10 10 | . . . . 10 Successful Hack 60 | . 5 . 38 17 Select Force Hacks 60 | . 60 . . . Disable Machine 45 | . 30 . . 15 Destroy Structure 88 | . 37 24 . 27 Lose Combat Pursuer 60 | . . . 30 30 Influence Decreases 2036 | 20 294 350 761 611 Entered New Map 163 | . . 86 64 13 Time Decay 1673 | 20 294 264 521 574 Lost Part 50 | . . . 30 20 Lost Ally 30 | . . . 30 . Purge Threat 120 | . . . 116 4 Squads Dispatched 7 | . 4 . 1 2 Investigation 4 | . 2 . 1 1 Extermination . | . . . . . Reinforcement 3 | . 2 . . 1 Assault . | . . . . . Garrison . | . . . . . Intercept . | . . . . . Searches Triggered . | . . . . . Construction Impeded . | . . . . . Haulers Reinforced . | . . . . . Active Scanning Responses . | . . . . . Cargo Convoy Interrupts . | . . . . . Stealth | -11 -10 -10 -9 -9 --------- Run | Yrd Mat Min Mat Sto Distress Signals 6 | . 2 . 2 2 Communications Jammed . | . . . . . Distress Signals . | . . . . . Times Spotted 105 | . 17 11 38 39 Peak Tracking Total 5 | . 3 5 5 5 Tactical Retreats 4 | . . . 2 2 Traps | -11 -10 -10 -9 -9 ------- Run | Yrd Mat Min Mat Sto Traps Triggered 3 | . . . . 3 Indirectly . | . . . . . Trap Hack Attempts 146 | . . . . 146 Triggered . | . . . . . Disarmed 2 | . . . . 2 Reprogrammed 10 | . . . . 10 Reused 1 | . . . . 1 Traps Extracted . | . . . . . Installed . | . . . . . Triggered 1 | . . . . 1 Machines | -11 -10 -10 -9 -9 ---------- Run | Yrd Mat Min Mat Sto Machines Disabled 4 | . 2 . 1 1 Max in Single Turn 2 | . 2 . 1 1 Garrison Access 1 | . . . . 1 Machines Repaired . | . . . . . Machines Dismantled . | . . . . . Machines Sabotaged . | . . . . . Overloaded Fab Kills . | . . . . . Hacking | -11 -10 -10 -9 -9 --------- Run | Yrd Mat Min Mat Sto Machines Accessed 28 | . 5 . 10 13 Terminals 19 | . 2 . 7 10 Fabricators . | . . . . . Repair Stations 4 | . 1 . 1 2 Recycling Units 2 | . 2 . . . Scanalyzers 2 | . . . 2 . Garrison Access 1 | . . . . 1 Total Hacks 71 | . 15 . 30 26 Successful 37 | . 8 . 17 12 Failed 33 | . 7 . 12 14 Catastrophic 9 | . 2 . 2 5 Database Lockouts 1 | . . . 1 . Manual 25 | . 7 . 12 6 Terminals 42 | . 4 . 16 22 Fabricators . | . . . . . Repair Stations 15 | . 5 . 7 3 Recycling Units 6 | . 6 . . . Scanalyzers 7 | . . . 7 . Garrison Access 1 | . . . . 1 Terminal Hacks 15 | . 1 . 6 8 Robot Analysis 3 | . 1 . 1 1 Open Door 2 | . . . . 2 Branch Access Points 1 | . . . 1 . Scanalyzer Index 1 | . . . 1 . Unreport Threat 2 | . . . 1 1 Locate Traps 3 | . . . 1 2 Hauler Manifests 1 | . . . . 1 Zone Layout 2 | . . . 1 1 Fabricator Hacks . | . . . . . Repair Station Hacks 12 | . 4 . 6 2 Scan Component 6 | . 2 . 3 1 Repair 6 | . 2 . 3 1 Recycling Unit Hacks 1 | . 1 . . . Process 1 | . 1 . . . Scanalyzer 3 | . . . 3 . Retrieve Study 3 | . . . 3 . Garrison Access Hacks 1 | . . . . 1 Seal Access 1 | . . . . 1 Unauthorized Hacks 5 | . 2 . 2 1 Terminals 3 | . . . 2 1 Assimilate 1 | . . . 1 . Botnet 2 | . . . 1 1 Fabricators . | . . . . . Repair Stations . | . . . . . Recycling Units 2 | . 2 . . . Tunnel 2 | . 2 . . . Scanalyzers . | . . . . . Garrison Access . | . . . . . Data Cores Recovered 2 | . . . 1 1 Used . | . . . . . Hacking Detections 22 | . 4 . 9 9 Full Trace Events 2 | . . . 1 1 Feedback Events . | . . . . . Feedback Blocked . | . . . . . Robot Schematics Acquired . | . . . . . Robots Built . | . . . . . Authchips . | . . . . . Time . | . . . . . Total Robot Build Rating . | . . . . . Part Schematics Acquired . | . . . . . Parts Built . | . . . . . Authchips . | . . . . . Time . | . . . . . Total Part Build Rating . | . . . . . Part Studies Acquired 3 | . . . 3 . Parts Repaired 6 | . 2 . 3 1 Time 162 | . 52 . 78 32 Parts Recycled . | . . . . . Recycled Matter 103 | . 103 . . . Retrieved Matter . | . . . . . Retrieved Components . | . . . . . Parts Scanalyzed . | . . . . . Part Schematics Acquired . | . . . . . Parts Damaged . | . . . . . Bothacking | -11 -10 -10 -9 -9 ------------ Run | Yrd Mat Min Mat Sto Used RIF Installer . | . . . . . Robots Hacked 1 | . . . . 1 Non-combat 1 | . . . . 1 Combat . | . . . . . Robot Hacks Applied 1 | . . . . 1 no_distress 1 | . . . . 1 Relay Couplers Released . | . . . . . Fabnet Peak Effective % . | . . . . . Robots Rewired . | . . . . . Allies Hacked . | . . . . . Hacks Repelled . | . . . . . Allies | -11 -10 -10 -9 -9 -------- Run | Yrd Mat Min Mat Sto Total Allies 2 | . . 1 1 . Largest Group 1 | . . 1 1 . Highest-Rated Group 31 | . . 31 31 . Highest-Rated Ally 31 | . . 31 31 . Total Orders . | . . . . . Ally Attacks 5 | . . . 5 . Total Damage 82 | . . . 82 . Kills 1 | . . . 1 . Allies Corrupted . | . . . . . Allies Melted . | . . . . . Intel | -11 -10 -10 -9 -9 ------- Run | Yrd Mat Min Mat Sto Active Infowar (turns) 346 | . . . . 346 Seismic 346 | . . . . 346 Robot Analysis Total 3 | . 1 . 1 1 Derelict Logs Recovered 2 | . . 2 . . Drone Launches . | . . . . . Drone Recoveries . | . . . . . Exploration | -11 -10 -10 -9 -9 ------------- Run | Yrd Mat Min Mat Sto Turns Passed 7017 | 135 825 861 1972 3224 Spaces Moved 2817 | 62 352 473 794 1136 Core 4 | 4 . . . . Treads 2633 | 58 352 473 614 1136 Legs . | . . . . . Wheels 180 | . . . 180 . Hover . | . . . . . Flight . | . . . . . Fastest Speed 50 | 50 160 160 175 200 Average Speed 185 | 152 160 160 194 200 Slowest Speed 200 | 160 160 160 200 200 Overloaded Moves . | . . . . . Propulsion Burnouts . | . . . . . Robots Hopped . | . . . . . Potential Cave-ins . | . . . . . Cave-ins Triggered . | . . . . . Exploration Rate (%) 65 | 4 70 94 66 95 Regions Visited 4 Branch Regions 2 Pre-discovered Areas 3 | . 2 . . 1 Known Exits Taken 1 | . . . 1 . Unknown Exits Taken 3 | 1 1 1 . . Scrap Searched 2 | . . 2 . . Spaces Dug 22 | . 7 15 . . Terrain Destroyed 92 | . 43 27 . 22 Melee . | . . . . . Projectile 2 | . 2 . . . AOE 90 | . 41 27 . 22 Terrain Rammed . | . . . . . Walls Destroyed . | . . . . . Machines Disabled . | . . . . . Actions | -11 -10 -10 -9 -9 --------- Run | Yrd Mat Min Mat Sto Total 4137 | 83 556 525 1062 1911 Wait 732 | 2 144 10 124 452 Move 2814 | 61 351 473 793 1136 Hop . | . . . . . Pick Up 61 | 6 10 3 27 15 Fast Attach 15 | 6 1 . 3 5 Attach 12 | . 1 . 9 2 Detach 3 | . . . 3 . Swap 47 | . 11 5 7 24 Drop 41 | . 5 3 9 24 Fire 232 | 8 30 26 76 92 Melee 4 | . . . . 4 Ram . | . . . . . Kick . | . . . . . Crush 26 | . 3 5 11 7 Escape Stasis 4 | . . . . 4 Rewire . | . . . . . Trap 146 | . . . . 146 Miscellaneous . | . . . . . Route ------- -11/Scrapyard -10/Materials (discovered 3 exits: *Mat x2 / [*Min]) -10/Mines (discovered 4 exits: *Mat x2 / Exi / [*Sub]) -9/Materials (discovered 6 exits: [*Mat x2] / *Min x2 / *Sto x2) -9/Storage (discovered 1 exit: [*Mat]) History --------- Turn | Location | Event 13 | -11/Scrapyard | Discovered new exit (range 15) 136 | -11/Scrapyard | Entered Materials 313 | -10/Materials | Build established: Mutant 471 | -10/Materials | Discovered new exit (range 12) 560 | -10/Materials | Repaired Lgt. Armor Plating 669 | -10/Materials | Repaired Grenade Launcher 817 | -10/Materials | Discovered new exit (range 15) 896 | -10/Materials | Discovered new exit (range 15) 961 | -10/Materials | Entered Mines 1009 | -10/Mines | Learned Materials trap positions 1096 | -10/Mines | Identified exit to Exiles 1229 | -10/Mines | Discovered new exit (range 6) 1548 | -10/Mines | A weapon hastily lodged in a ceiling crevice suddenly fell to the ground 1716 | -10/Mines | Discovered new exit (range 8) 1771 | -10/Mines | Excavation squad dispatched 1771 | -10/Mines | A large section of the Mines collapsed 1777 | -10/Mines | Discovered new exit (range 8) 1812 | -10/Mines | Received a Mining Laser from a helpful Derelict 1822 | -10/Mines | Entered Materials 1822 | -9/Materials | Accompanied by 1 ally 1822 | -9/Materials | Evolved 2 slots: Propulsion x1, Utility x1 1823 | -9/Materials | Loaded intel: 19 trap records 2512 | -9/Materials | Discovered new exit (range 15) 2736 | -9/Materials | Repaired Lgt. Treads+ 2767 | -9/Materials | Repaired Lgt. Treads+ 2794 | -9/Materials | Repaired Lgt. Treads+ 2861 | -9/Materials | Discovered new exit (range 16) 2884 | -9/Materials | Build established: Scavenger-Mutant 3222 | -9/Materials | Build established: Mutant 3308 | -9/Materials | Discovered new exit (range 11) 3308 | -9/Materials | Discovered new exit (range 14) 3388 | -9/Materials | Identified exit to Mines 3388 | -9/Materials | Identified exit to Storage 3453 | -9/Materials | Core integrity fell below 50% 3661 | -9/Materials | Central database locked down 3677 | -9/Materials | Discovered new exit (range 3) 3794 | -9/Materials | Entered Storage 4445 | -9/Storage | Build established: Scavenger-Mutant 5445 | -9/Storage | Repaired Hrd. Light Armor Plating 5533 | -9/Storage | Learned location of Armory (-4) 5606 | -9/Storage | Core integrity fell below 20% 5694 | -9/Storage | Discovered new exit (range 12) 7018 | -9/Storage | Destroyed by G-47 Trooper with Particle Gun Last Messages --------------- 06636_ R-06 Scavenger collects Wheel. 06641_ K-01 Serf cleans the Sealed Heavy Doors. 06643_ K-01 Serf destroyed. 06644_ R-06 Scavenger collects Wheel. 06647_ R-06 Scavenger collects Lgt. Ion Engine. 06651_ R-06 Scavenger collects Med. Matter Pod. 06713_ G-34 Mercenary destroyed. 06716_ Dropped EM Shotgun. 06728_ G-34 Mercenary destroyed. 06738_ K-01 Serf collects debris. 06745_ Acquired 20 matter. 06858_ Dropped Lgt. Treads+. 06867_ R-06 Scavenger collects Lgt. Treads+. 06870_ K-01 Serf cleans the Terminal. 06897_ Acquired Imp. Treads+. 06932_ Acquired 30 matter. 07003_ C-30 ARC bursts open, deploying its payload. 07003_ G-47 Trooper unfolds itself. 07003_ G-34 Mercenary unfolds itself. 07010_ Slammed into W-16 Scout. Map ----- +----------------------------------------------------+ | ??????????????????????????????????????? | | ?#####????????????????????????????????? | | ?# #????????????????????????????????? | | ?# < #????####????????????????????????? | | ?# #### !!!#????????????????????????? | | ?# ##T# !!!#????????????????????????? | | ?# # #????????????????????????? | | ?# + !!#????????????????????????? | | ?# # !!#????????????????????????? | | ?# # #!!!!#????????????????????????? | | ?# #########????????????????????????? | | ## ##????????#######????????????????? | | # ########## #????????????????? | | # #????????????????? | | # !% % #????????????????? | | # ] #????????????????? | | # ] #####+#### " #????????????????? | | ###+#### ###%%%##????????????????? | | # T#?# = ###% %################### | | ## ###?# ### # """"" # ! | | #! !#??# ### # """"" # % | | #! !#??# ### # """"" # | | #! !#??# !### + # | | #! !#??# ### # # * | | #####??#] ### # # ! | | ???????#! @%g # ####### | | ???????# ### ##+##+############# | | ???????# #?#^ #???# ##### | | ???????# ! #?# #???# + # | | ???????# #?# ^^ #???# # T | | ???############## ##### ## "# | | ???# #^ """## ##= # | | ???# + """ R"## ##= # | | ???# # G" """## ##= # | | ???# # %%""" ##### ##### | | ???# + % #???# ##### | | ???############## % #??## ##??? | | ??????????????####+###+## #??# #### | | ??????????????# ## #??# % | | ??????????????# %## ##?# T | | ??????????????# """"" # ### | | ??????????????# "][! + #### | | ??????????????# """"" # #########??? | | ??????????????# """"" ## ############# | | ??????????????# "!][ ## ## | | ??????????????# """"" ## ## "T" """ "" | | ??????????????# ## ## """ "" | | ??????????????###+####### ## """ "" | | ?????##########?# #?????# ## | | ?????# T #?# #?????# ## | +----------------------------------------------------+ Best States ------------- Heat Dissipation 42 Energy Generation 12 Energy Capacity 265 Matter Stores 300 Matter Capacity 300 Sight Range 16 Terrain Scan Density 10 Armor Coverage 150 Evasion (%) 40 Recoil Reduction 3 Item Schematics ----------------- None Robot Schematics ------------------ None Fabricated ------------ Nothing Repaired ---------- Lgt. Armor Plating | 6% | -10/Materials Grenade Launcher | 35% | -10/Materials Lgt. Treads | 42% | -9/Materials Lgt. Treads | 47% | -9/Materials Lgt. Treads | 47% | -9/Materials Hrd. Light Armor Plating | 27% | -9/Storage Studied --------- Lgt. Treads | -9/Materials | Hacked Beam Rifle | -9/Materials | Hacked Imp. Treads | -9/Materials | Hacked Alien Tech Used ----------------- None Achievements -------------- None Challenges ------------ None Game ------ Seed ExoskeletonDataDrive Manual? 0 Play Time 00:30:18 Cumulative 2148.8 hours Start 2026.02.22 @ 18:11:45 End 2026.02.22 @ 18:39:13 Sessions 1 Manual Loads 0 Difficulty Rogue Special Mode None Game No. 1366 Rogue 1362 Adventurer 4 Explorer 0 Win Type - Total 301 Types 227/14/23/11/3/1/4/10/5/3 Lore% 98 Gallery% 96 Achievement% 89 Wizard Run 0 Options --------- Layout 2 ASCII 0 Keyboard 1 Movement Vi Keybinds 0 Fullscreen 0 Font 24/Terminus Map View 59x48 Zoom Use 0% Tactical HUD 1 Map Filters NONE Filters NONE Steam 1 RUN: b971ada6-8ed2-4ac8-95c0-2c8bfe66d63f